bitfinex-derivatives/quotes_BTCF0:USTF0_20241120
["timestamp","ask_amount","ask_price","bid_price","bid_amount"]
[1732117299261,0.052774,94634.0,94633.0,0.05389871]
[1732117299562,0.052774,94634.0,94627.0,0.49321383]
[1732117299864,0.052774,94634.0,94628.0,0.00989562]
[1732117300054,0.052774,94634.0,94629.0,0.00989562]
[1732117300254,0.052774,94634.0,94627.0,0.10634416]
[1732117300458,0.052774,94634.0,94628.0,0.00989576]
[1732117300661,0.052774,94634.0,94629.0,0.00989576]
[1732117300860,0.3608,94642.0,94627.0,0.05356616]
[1732117301160,0.052776,94631.0,94628.0,0.00989576]
[1732117301363,0.052776,94631.0,94626.0,0.4935586]
[1732117301661,0.3608,94633.0,94626.0,0.05312277]
[1732117301857,0.052778,94627.0,94624.0,0.3608]
[1732117302058,0.3608,94633.0,94624.0,0.3608]
[1732117302360,0.3608,94633.0,94629.0,0.052777]
[1732117302556,0.3608,94633.0,94630.0,0.00989582]
[1732117302756,0.3608,94633.0,94629.0,0.052777]
[1732117302956,0.3608,94633.0,94630.0,0.00989569]
[1732117303156,0.3608,94633.0,94627.0,0.44043583]
[1732117303350,0.3608,94633.0,94628.0,0.45033151]
[1732117303551,0.3608,94633.0,94624.0,0.4141767]
[1732117303552,0.413574,94633.0,94629.0,0.46682432]
[1732117303747,0.052776,94631.0,94630.0,0.02638849]
[1732117304151,0.3608,94633.0,94630.0,0.02638849]
[1732117304357,0.3608,94633.0,94631.0,0.02638849]
[1732117304663,0.3608,94633.0,94632.0,0.46682432]
[1732117305165,0.413574,94633.0,94632.0,0.46682432]
[1732117305464,0.413574,94633.0,94632.0,0.00989568]
[1732117305660,0.413574,94633.0,94632.0,0.02638883]
[1732117305960,0.413574,94633.0,94606.0,0.66646533]
[1732117305961,0.413574,94633.0,94620.0,0.44043583]
[1732117306167,0.413581,94621.0,94620.0,0.44043583]
[1732117306374,0.413581,94621.0,94620.0,0.33355947]
[1732117307061,0.422031,94621.0,94620.0,0.33355947]
[1732117307269,0.36925,94621.0,94613.0,0.05151833]
[1732117307453,0.36925,94621.0,94614.0,0.33492034]
[1732117307650,0.36925,94621.0,94605.0,0.3608]
[1732117307651,0.052784,94616.0,94615.0,0.33492034]
[1732117308561,0.00845,94621.0,94615.0,0.67850661]
[1732117308773,0.061231,94621.0,94620.0,0.052782]
[1732117309075,0.061231,94621.0,94620.0,0.38858627]
[1732117309360,0.061231,94621.0,94620.0,0.44136827]
[1732117309563,0.052782,94619.0,94618.0,0.00088]
[1732117309772,0.052788,94608.0,94607.0,0.00068]
[1732117309954,0.052792,94601.0,94600.0,0.055]
[1732117310565,0.052798,94590.0,94589.0,0.00012238]
[1732117310763,0.413598,94590.0,94589.0,0.00012238]
[1732117310974,0.59687315,94590.0,94589.0,0.00012238]
[1732117313463,0.59687315,94590.0,94559.0,0.0341]
[1732117313464,0.052809,94572.0,94559.0,0.0341]
[1732117313971,0.052809,94571.0,94570.0,0.05281]
[1732117314759,0.052812,94565.0,94564.0,9.263e-05]
[1732117316263,0.3608,94566.0,94555.0,0.05156353]
[1732117316460,0.413618,94556.0,94538.0,0.0334]
[1732117316666,0.413618,94556.0,94554.0,0.052818]
[1732117316667,0.3608,94556.0,94554.0,0.052818]
[1732117317469,0.3608,94556.0,94548.0,0.00011263]
[1732117317470,8.738e-05,94555.0,94548.0,0.00011263]
[1732117318355,0.052819,94554.0,94548.0,0.10539566]
[1732117318562,0.05282,94552.0,94548.0,0.00011263]
[1732117319257,0.052821,94550.0,94548.0,0.00011263]
[1732117320371,0.3608,94552.0,94548.0,0.00011263]
[1732117320561,0.05290538,94555.0,94548.0,0.05293463]
[1732117320758,0.3608,94567.0,94549.0,0.19317895]
[1732117320963,0.3608,94567.0,94555.0,0.413618]
[1732117321267,0.052813,94564.0,94556.0,0.0627208]
[1732117321456,0.052813,94564.0,94557.0,0.0099038]
[1732117321657,0.052814,94563.0,94558.0,0.0099038]
[1732117321863,0.052815,94560.0,94559.0,0.0099038]
[1732117322271,0.00010083,94562.0,94559.0,0.0099038]
[1732117322469,0.00010083,94562.0,94561.0,0.23487941]
[1732117322672,0.3608,94588.0,94561.0,0.24478321]
[1732117322870,0.052802,94583.0,94568.0,0.3608]
[1732117323065,0.052802,94583.0,94574.0,0.052807]
[1732117323574,0.052804,94581.0,94571.0,0.17187515]
[1732117323874,0.00012833,94573.0,94568.0,0.3608]
[1732117324063,0.00012833,94573.0,94572.0,0.052808]
[1732117324265,0.2074,94602.0,94572.0,0.00990129]
[1732117324463,0.3608,94606.0,94587.0,0.0528]
[1732117324464,0.052795,94597.0,94587.0,0.0528]
[1732117324771,0.052796,94595.0,94587.0,0.0528]
[1732117324976,0.3608,94606.0,94586.0,0.3608]
[1732117324977,0.41477347,94606.0,94586.0,0.3608]
[1732117325281,0.00011968,94605.0,94586.0,0.3608]
[1732117325572,0.052793,94600.0,94586.0,0.3608]
[1732117325773,0.00845,94604.0,94603.0,0.052791]
[1732117325980,0.00196,94610.0,94609.0,0.052788]
[1732117326169,0.0331,94638.0,94609.0,0.052788]
[1732117326170,0.05278,94623.0,94610.0,0.052787]
[1732117326373,0.052777,94628.0,94617.0,0.3608]
[1732117326569,0.02111638,94645.0,94617.0,0.3608]
[1732117326570,0.3608,94653.0,94627.0,0.3608]
[1732117326873,0.3608,94653.0,94638.0,0.3608]
[1732117326874,0.052771,94639.0,94638.0,0.3608]
[1732117327078,0.00011551,94639.0,94638.0,0.3608]
[1732117327377,0.05288651,94639.0,94638.0,0.3608]
[1732117327678,0.0331,94660.0,94638.0,0.3608]
[1732117327679,0.02111638,94660.0,94638.0,0.3608]
[1732117327880,0.02111638,94660.0,94659.0,0.3608]
[1732117328264,0.052758,94663.0,94652.0,0.18327515]
[1732117328576,0.052758,94663.0,94652.0,0.23603915]
[1732117328780,6.056e-05,94653.0,94652.0,0.23603915]
[1732117328977,6.056e-05,94653.0,94652.0,0.25715553]
[1732117329775,6.056e-05,94653.0,94652.0,0.3097142]
[1732117329983,0.052753,94671.0,94654.0,0.052762]
[1732117330279,0.052754,94670.0,94661.0,0.18327515]
[1732117330474,0.3608,94675.0,94649.0,0.3608]
[1732117330475,0.05276,94660.0,94649.0,0.2068]
[1732117330675,0.3608,94652.0,94643.0,0.18327515]
[1732117330882,0.052764,94652.0,94643.0,0.18327515]
[1732117331275,0.3608,94659.0,94643.0,0.18327515]
[1732117331582,0.05276,94659.0,94643.0,0.18327515]
[1732117331774,0.05276,94659.0,94646.0,0.052767]
[1732117331980,0.3608,94669.0,94643.0,0.23516866]
[1732117331981,0.00845,94658.0,94643.0,0.23516866]
[1732117332278,0.3608,94654.0,94643.0,0.23516866]
[1732117332476,0.052764,94653.0,94643.0,0.23516866]
[1732117332676,0.3608,94654.0,94644.0,0.052768]
[1732117333077,0.3608,94654.0,94645.0,0.0358]
[1732117334282,0.052762,94655.0,94645.0,0.0358]
[1732117334577,0.3608,94654.0,94645.0,0.0358]
[1732117334992,0.052765,94650.0,94645.0,0.0358]
[1732117335283,0.3608,94654.0,94645.0,0.0358]
[1732117335472,0.413563,94654.0,94645.0,0.0358]
[1732117336577,0.413563,94654.0,94643.0,0.23516866]
[1732117336578,0.3608,94654.0,94643.0,0.23516866]
[1732117336780,0.3608,94654.0,94643.0,0.28793766]
[1732117337090,0.3608,94654.0,94643.0,0.23516866]
[1732117337275,0.052765,94651.0,94643.0,0.23516866]
[1732117337471,0.00845,94658.0,94643.0,0.23516866]
[1732117337782,0.052767,94647.0,94643.0,0.05189351]
[1732117338089,0.052769,94642.0,94641.0,0.3608]
[1732117338384,0.052769,94642.0,94629.0,0.24282]
[1732117338385,0.052775,94632.0,94619.0,0.3608]
[1732117338771,0.052775,94632.0,94631.0,0.3158]
[1732117338984,1.552775,94632.0,94631.0,0.3158]
[1732117339286,1.552775,94632.0,94619.0,0.3608]
[1732117339287,0.052778,94627.0,94619.0,0.3608]
[1732117339490,0.052778,94627.0,94610.0,0.21697515]
[1732117339491,0.052778,94627.0,94614.0,0.052785]
[1732117339688,0.052778,94626.0,94610.0,0.0337]
[1732117339989,0.052778,94626.0,94619.0,0.05403392]
[1732117340681,0.052778,94626.0,94610.0,0.21697515]
[1732117340885,0.052778,94626.0,94618.0,0.05263058]
[1732117341273,0.41376822,94633.0,94619.0,0.18327515]
[1732117341274,0.3608,94633.0,94619.0,0.18327515]
[1732117341477,0.3608,94633.0,94628.0,0.18327515]
[1732117341676,0.3608,94633.0,94632.0,0.052775]
[1732117341877,0.0388,94653.0,94632.0,0.052775]
[1732117341878,0.05403392,94648.0,94632.0,0.052775]
[1732117342086,0.3608,94650.0,94628.0,0.18327515]
[1732117342284,0.3608,94639.0,94634.0,0.052774]
[1732117343382,0.3608,94650.0,94637.0,0.18327515]
[1732117344086,0.052766,94649.0,94639.0,0.052771]
[1732117344590,0.3608,94640.0,94639.0,0.052771]
[1732117345089,0.3608,94640.0,94628.0,0.0533428]
[1732117345090,0.3608,94640.0,94633.0,0.052774]
[1732117345285,0.3608,94640.0,94630.0,0.052776]
[1732117345482,0.3608,94640.0,94628.0,0.0533428]
[1732117345687,0.3608,94640.0,94619.0,0.18327515]
[1732117345688,0.3608,94640.0,94621.0,0.052781]
[1732117345888,0.052774,94634.0,94625.0,0.05270677]
[1732117346084,0.3608,94640.0,94625.0,0.00013182]
[1732117346284,0.052775,94633.0,94625.0,0.36093182]
[1732117346483,0.052775,94633.0,94626.0,0.052778]
[1732117346780,0.54407515,94657.0,94626.0,0.3608]
[1732117346984,0.3608,94663.0,94638.0,0.18327515]
[1732117347285,0.3608,94663.0,94636.0,0.3608]
[1732117347286,0.3608,94663.0,94647.0,0.18327515]
[1732117347487,0.3608,94663.0,94655.0,0.052762]
[1732117347987,0.45420288,94676.0,94647.0,0.18327515]
[1732117347988,0.45420288,94676.0,94654.0,0.3608]
[1732117348286,0.05316592,94672.0,94657.0,0.18327515]
[1732117348479,0.3608,94664.0,94657.0,0.18327515]
[1732117348784,0.052762,94655.0,94654.0,0.3608]
[1732117349089,0.3608,94655.0,94625.0,0.00013182]
[1732117349288,0.413567,94646.0,94625.0,0.00013182]
[1732117349491,0.3608,94627.0,94625.0,0.00013182]
[1732117349785,0.052778,94626.0,94625.0,0.00013182]
[1732117350796,0.061228,94626.0,94625.0,0.00013182]
[1732117351489,0.00845,94626.0,94625.0,0.00013182]
[1732117351684,0.061228,94626.0,94625.0,0.00013182]
[1732117353587,0.00845,94626.0,94615.0,0.31593182]
[1732117353789,0.052781,94622.0,94615.0,0.36871582]
[1732117354094,0.052781,94622.0,94616.0,0.052784]
[1732117354396,0.00845,94626.0,94620.0,0.052782]
[1732117354588,0.052781,94622.0,94615.0,0.36871582]
[1732117354779,0.00845,94626.0,94615.0,0.31593182]
[1732117354780,8.317e-05,94625.0,94615.0,0.31593182]
[1732117354984,0.052782,94620.0,94619.0,0.00063]
[1732117355185,0.052782,94620.0,94619.0,0.01052344]
[1732117355186,0.413582,94620.0,94619.0,0.01052344]
[1732117355390,0.413582,94620.0,94608.0,8.152e-05]
[1732117355391,0.052788,94609.0,94608.0,8.152e-05]
[1732117355589,0.413588,94609.0,94608.0,8.152e-05]
[1732117355994,0.413588,94609.0,94608.0,0.01649908]
[1732117356586,0.97788,94609.0,94583.0,0.0537854]
[1732117356896,0.97788,94609.0,94580.0,0.36136]
[1732117356897,0.052799,94590.0,94580.0,0.36136]
[1732117357094,0.052799,94590.0,94580.0,0.3608]
[1732117357297,0.413596,94595.0,94585.0,0.052801]
[1732117357487,0.3608,94595.0,94580.0,0.3608]
[1732117357799,0.052803,94581.0,94580.0,0.05391733]
[1732117358095,0.052807,94575.0,94574.0,0.00010674]
[1732117358293,0.413607,94575.0,94574.0,0.00010674]
[1732117358710,2.68412,94575.0,94540.0,0.0338]
[1732117358904,0.052828,94538.0,94534.0,0.18327515]
[1732117359104,0.35420361,94541.0,94534.0,0.18327515]
[1732117359304,0.35420361,94541.0,94535.0,0.0033017]
[1732117359499,0.052827,94540.0,94536.0,0.0033017]
[1732117359805,0.35420361,94541.0,94528.0,0.08864754]
[1732117359806,9.672e-05,94539.0,94537.0,0.0033017]
[1732117360100,9.672e-05,94539.0,94535.0,0.052829]
[1732117361009,9.672e-05,94539.0,94528.0,0.08864754]
[1732117361010,0.3608,94537.0,94528.0,0.05304754]
[1732117361201,0.3608,94537.0,94527.0,0.00010865]
[1732117361202,0.18327515,94534.0,94527.0,0.00010865]
[1732117361400,0.052832,94531.0,94527.0,0.00010865]
[1732117361708,0.052833,94529.0,94527.0,0.05284474]
[1732117362005,0.3608,94528.0,94527.0,0.00010865]
[1732117362504,9.672e-05,94539.0,94527.0,0.00010865]
[1732117362809,9.672e-05,94539.0,94536.0,0.052828]
[1732117363316,9.672e-05,94539.0,94527.0,0.05294165]
[1732117363497,9.672e-05,94539.0,94528.0,0.052833]
[1732117363692,9.672e-05,94539.0,94527.0,0.00010865]
[1732117363999,9.672e-05,94539.0,94527.0,0.05345709]
[1732117364194,9.672e-05,94539.0,94533.0,0.05283]
[1732117364794,9.672e-05,94539.0,94536.0,0.052829]
[1732117364996,9.672e-05,94539.0,94530.0,0.052832]
[1732117365205,9.672e-05,94539.0,94533.0,0.05283]
[1732117365908,9.672e-05,94539.0,94527.0,0.00010865]
[1732117366207,0.052833,94528.0,94527.0,0.00010865]
[1732117368694,0.052836,94524.0,94515.0,0.06138105]
[1732117368894,0.3608,94521.0,94515.0,0.06138105]
[1732117369097,0.3608,94521.0,94515.0,0.00854105]
[1732117369098,0.05284,94516.0,94515.0,0.00854105]
[1732117369308,0.052848,94502.0,94491.0,0.0357]
[1732117370408,0.052848,94502.0,94499.0,0.05280919]
[1732117370909,0.3608,94516.0,94499.0,0.05280919]
[1732117371209,0.3608,94516.0,94510.0,0.052843]
[1732117371515,0.4142324,94533.0,94506.0,0.3608]
[1732117371697,0.052832,94530.0,94507.0,0.0683]
[1732117371897,0.3608,94533.0,94513.0,0.052841]
[1732117372096,0.3608,94533.0,94507.0,0.0683]
[1732117372809,0.28084214,94531.0,94507.0,0.0683]
[1732117373005,0.3608,94525.0,94507.0,0.0683]
[1732117373800,0.3608,94509.0,94507.0,0.0683]
[1732117374104,0.3608,94509.0,94500.0,0.1]
[1732117374105,0.052848,94501.0,94500.0,0.1]
[1732117375096,0.052845,94507.0,94500.0,0.1]
[1732117375301,0.3608,94501.0,94500.0,0.1]
[1732117376005,0.052845,94507.0,94500.0,0.1]
[1732117376513,0.052846,94505.0,94500.0,0.1]
[1732117377210,0.3608,94509.0,94500.0,0.1]
[1732117377707,0.3608,94509.0,94505.0,0.052846]
[1732117377909,0.3608,94520.0,94500.0,0.1]
[1732117378409,0.052839,94519.0,94511.0,0.052842]
[1732117379214,0.052839,94519.0,94500.0,0.1]
[1732117379215,0.3608,94520.0,94502.0,0.052848]
[1732117379509,1.50072,94549.0,94509.0,0.64164214]
[1732117379510,0.3657,94537.0,94509.0,0.64164214]
[1732117379708,0.05283,94534.0,94523.0,0.052835]
[1732117379914,0.3608,94537.0,94523.0,0.052835]
[1732117380101,0.3608,94537.0,94510.0,0.120443]
[1732117380102,0.3608,94537.0,94512.0,0.052842]
[1732117380308,0.3608,94525.0,94510.0,0.0676]
[1732117380508,0.3608,94537.0,94515.0,0.05284]
[1732117380509,0.052835,94526.0,94515.0,0.05284]
[1732117380707,0.41396074,94537.0,94510.0,0.0676]
[1732117380908,0.3608,94524.0,94510.0,0.0676]
[1732117381105,0.41396074,94537.0,94510.0,0.0676]
[1732117381304,0.41396074,94537.0,94512.0,0.052842]
[1732117381305,0.3608,94537.0,94512.0,0.052842]
[1732117381501,0.3608,94537.0,94511.0,0.052842]
[1732117381502,0.061289,94536.0,94522.0,0.052836]
[1732117381810,0.00846,94536.0,94523.0,0.0359]
[1732117382012,0.3608,94525.0,94523.0,0.0359]
[1732117383610,0.00846,94536.0,94523.0,0.0359]
[1732117383912,0.00846,94536.0,94535.0,0.052829]
[1732117384098,0.00846,94536.0,94527.0,0.3608]
[1732117384304,0.052833,94528.0,94527.0,0.3608]
[1732117385405,0.00846,94536.0,94527.0,0.3608]
[1732117385603,0.00846,94536.0,94535.0,0.052829]
[1732117386610,0.00846,94536.0,94535.0,0.413629]
[1732117387012,9.672e-05,94539.0,94535.0,0.413629]
[1732117387210,9.672e-05,94539.0,94538.0,0.052827]
[1732117388125,9.672e-05,94539.0,94538.0,0.04122634]
[1732117388417,9.672e-05,94539.0,94538.0,0.052827]
[1732117389006,9.672e-05,94539.0,94535.0,0.3608]
[1732117389007,9.672e-05,94539.0,94535.0,0.4023475]
[1732117389410,9.672e-05,94539.0,94538.0,0.052827]
[1732117390910,9.672e-05,94539.0,94538.0,0.06273236]
[1732117391511,9.672e-05,94539.0,94538.0,0.052827]
[1732117391918,9.672e-05,94539.0,94538.0,0.370147]
[1732117392223,0.3608,94561.0,94539.0,0.31732]
[1732117392424,0.052824,94544.0,94543.0,0.3608]
[1732117392723,0.052824,94545.0,94543.0,0.3608]
[1732117393023,0.00012563,94544.0,94543.0,0.3608]
[1732117393418,0.05294963,94544.0,94543.0,0.3608]
[1732117394013,0.00012563,94544.0,94543.0,0.3608]
[1732117394213,0.05294963,94544.0,94543.0,0.3608]
[1732117395620,0.052829,94536.0,94535.0,0.0006]
[1732117395817,0.36092563,94544.0,94524.0,0.3608]
[1732117396114,0.36092563,94544.0,94524.0,0.413635]
[1732117396115,0.05283,94533.0,94524.0,0.413635]
[1732117396428,0.3608,94539.0,94524.0,0.3608]
[1732117396728,0.00012563,94544.0,94524.0,0.40377586]
[1732117397235,0.3608,94539.0,94524.0,0.40377586]
[1732117397526,0.05283,94534.0,94524.0,0.45661086]
[1732117397919,0.3608,94539.0,94524.0,0.45661086]
[1732117397920,0.05283,94533.0,94524.0,0.45661086]
[1732117398121,0.05283,94533.0,94532.0,0.3608]
[1732117398517,0.00012563,94544.0,94532.0,0.3608]
[1732117398718,0.05283,94533.0,94524.0,0.40437586]
[1732117398932,0.052828,94538.0,94530.0,0.052832]
[1732117399116,0.413628,94538.0,94530.0,0.052832]
[1732117399514,0.3608,94538.0,94528.0,0.00990543]
[1732117399714,0.05283,94533.0,94525.0,0.00990543]
[1732117399918,0.00012563,94544.0,94532.0,0.3608]
[1732117400114,0.00012563,94544.0,94536.0,0.052828]
[1732117400421,0.00012563,94544.0,94540.0,0.413626]
[1732117400722,0.00012563,94544.0,94540.0,0.3608]
[1732117400924,0.00012563,94544.0,94543.0,0.052825]
[1732117401524,0.00012563,94544.0,94543.0,0.06273001]
[1732117401729,0.00012563,94544.0,94543.0,0.00990501]
[1732117402914,0.00012563,94544.0,94541.0,0.052826]
[1732117403115,0.00012563,94544.0,94536.0,0.24849389]
[1732117403322,0.00012563,94544.0,94543.0,0.413625]
[1732117405924,0.00012563,94544.0,94543.0,0.3608]
[1732117406129,0.00012563,94544.0,94543.0,0.413625]
[1732117406429,0.00012563,94544.0,94543.0,0.730945]
[1732117407825,0.0163,94576.0,94544.0,0.31732]
[1732117408025,0.052807,94576.0,94572.0,0.1201533]
[1732117408329,0.3608,94576.0,94572.0,0.1201533]
[1732117408521,0.052808,94573.0,94563.0,0.052813]
[1732117408728,0.052808,94573.0,94560.0,0.0339]
[1732117408729,0.052812,94566.0,94565.0,0.3608]
[1732117408928,0.05293126,94566.0,94565.0,0.3608]
[1732117409236,0.00011926,94566.0,94565.0,0.413612]
[1732117409422,0.00011926,94566.0,94565.0,0.3608]
[1732117409818,0.00011926,94566.0,94565.0,0.413612]
[1732117410030,0.00011926,94566.0,94565.0,0.3608]
[1732117411336,0.00845,94567.0,94565.0,0.67804]
[1732117411540,0.052795,94596.0,94587.0,0.1201533]
[1732117411726,0.3608,94598.0,94587.0,0.1201533]
[1732117411727,0.052797,94593.0,94587.0,0.1201533]
[1732117411928,0.3608,94598.0,94582.0,0.3608]
[1732117412254,0.3608,94598.0,94582.0,0.36136]
[1732117412255,0.052801,94586.0,94582.0,0.36136]
[1732117412434,8.281e-05,94585.0,94584.0,0.052802]
[1732117412638,8.281e-05,94585.0,94584.0,0.413602]
[1732117413340,8.281e-05,94585.0,94584.0,0.45600987]
[1732117413541,0.05288381,94585.0,94584.0,0.40320787]
[1732117413727,0.05288381,94585.0,94584.0,0.3158]
[1732117413930,8.281e-05,94585.0,94584.0,0.3158]
[1732117415637,8.281e-05,94585.0,94584.0,0.368602]
[1732117416138,8.281e-05,94585.0,94584.0,0.3158]
[1732117416540,0.05288381,94585.0,94584.0,0.3158]
[1732117416732,8.281e-05,94585.0,94584.0,0.3158]
[1732117417140,0.05288381,94585.0,94584.0,0.3158]
[1732117417531,8.281e-05,94585.0,94584.0,0.3158]
[1732117417727,0.05288381,94585.0,94584.0,0.3158]
[1732117417948,8.281e-05,94585.0,94584.0,0.3158]
[1732117418249,8.281e-05,94585.0,94584.0,0.368602]
[1732117418433,8.281e-05,94585.0,94584.0,0.3158]
[1732117418633,0.05288381,94585.0,94584.0,0.3158]
[1732117419142,8.281e-05,94585.0,94584.0,0.3158]
[1732117420243,8.281e-05,94585.0,94571.0,0.1832907]
[1732117420244,0.052804,94581.0,94571.0,0.1832907]
[1732117420447,0.052804,94581.0,94574.0,0.052807]
[1732117420753,0.05288481,94585.0,94574.0,0.052807]
[1732117421043,8.281e-05,94585.0,94573.0,0.40206759]
[1732117421638,8.281e-05,94585.0,94583.0,0.1832907]
[1732117422232,8.281e-05,94585.0,94584.0,0.413602]
[1732117423136,8.281e-05,94585.0,94584.0,0.3608]
[1732117423346,8.281e-05,94585.0,94584.0,0.45495932]
[1732117423643,0.3608,94608.0,94585.0,0.31716]
[1732117423948,0.3608,94621.0,94603.0,0.1832907]
[1732117424138,0.052784,94617.0,94607.0,0.052788]
[1732117424643,0.052786,94614.0,94603.0,0.1832907]
[1732117424841,0.052785,94615.0,94603.0,0.1832907]
[1732117425049,0.052785,94615.0,94605.0,0.05279]
[1732117425248,0.3608,94621.0,94603.0,0.1832907]
[1732117425446,0.061235,94614.0,94604.0,0.052791]
[1732117425652,0.061235,94614.0,94603.0,0.22644286]
[1732117425653,0.00845,94614.0,94603.0,0.22644286]
[1732117426342,0.052787,94611.0,94604.0,0.052791]
[1732117426656,0.00845,94614.0,94610.0,0.3608]
[1732117426842,0.00845,94614.0,94613.0,0.2360767]
[1732117427847,0.00845,94614.0,94613.0,0.1832907]
[1732117428342,0.00845,94614.0,94613.0,0.27740688]
[1732117428740,0.00845,94614.0,94613.0,0.23240688]
[1732117430339,0.3608,94641.0,94640.0,0.1832907]
[1732117430551,0.3608,94641.0,94613.0,0.59448688]
[1732117430552,0.3608,94641.0,94631.0,0.1832907]
[1732117430740,0.00047,94634.0,94631.0,0.1832907]
[1732117430940,0.00047,94634.0,94633.0,0.052774]
[1732117431650,0.00047,94634.0,94631.0,0.1832907]
[1732117431853,0.00047,94634.0,94631.0,0.22608595]
[1732117432040,0.00047,94634.0,94633.0,0.051074]
[1732117432938,0.3608,94649.0,94648.0,0.052766]
[1732117433152,0.3608,94649.0,94648.0,0.2360567]
[1732117433355,0.3608,94663.0,94648.0,0.1832907]
[1732117433540,0.3608,94663.0,94660.0,0.052759]
[1732117434048,0.3608,94663.0,94649.0,0.0344]
[1732117434254,0.3608,94663.0,94661.0,0.2360497]
[1732117434941,0.3608,94676.0,94667.0,0.052755]
[1732117435139,0.3608,94676.0,94673.0,0.1832907]
[1732117435848,0.052745,94686.0,94673.0,0.2360427]
[1732117436441,0.3608,94687.0,94673.0,0.1832907]
[1732117436654,0.3608,94687.0,94683.0,0.1832907]
[1732117437246,0.3608,94698.0,94683.0,0.18338841]
[1732117437444,0.3608,94698.0,94692.0,0.1832907]
[1732117437654,0.3608,94698.0,94696.0,0.052739]
[1732117437855,0.3608,94698.0,94692.0,0.2360317]
[1732117438152,0.3608,94698.0,94692.0,0.04131396]
[1732117438343,0.052739,94697.0,94686.0,0.052744]
[1732117438540,0.052739,94697.0,94687.0,0.052744]
[1732117438755,0.052739,94697.0,94684.0,0.0341]
[1732117438951,0.3608,94698.0,94684.0,0.07556168]
[1732117439252,0.3608,94698.0,94691.0,0.052742]
[1732117439448,0.3608,94698.0,94684.0,0.0341]
[1732117439649,0.413538,94698.0,94687.0,0.052744]
[1732117439948,0.3608,94698.0,94684.0,0.052746]
[1732117440151,0.3608,94698.0,94683.0,0.04160581]
[1732117440152,0.3608,94688.0,94683.0,0.04160581]
[1732117440853,0.05274,94695.0,94687.0,0.052744]
[1732117441250,0.3608,94698.0,94683.0,0.27764251]
[1732117441457,0.3608,94689.0,94683.0,0.04160581]
[1732117441951,0.3608,94698.0,94683.0,0.04160581]
[1732117442154,0.3608,94707.0,94699.0,0.052738]
[1732117442553,0.3608,94707.0,94699.0,0.2360287]
[1732117443053,0.3608,94719.0,94699.0,0.2360287]
[1732117443761,0.3608,94719.0,94699.0,0.1832907]
[1732117443949,0.3608,94719.0,94699.0,0.2360287]
[1732117444254,0.3608,94719.0,94718.0,0.1832907]
[1732117445251,0.05273,94714.0,94709.0,0.1832907]
[1732117445556,0.3608,94719.0,94712.0,0.1832907]
[1732117446449,0.052729,94714.0,94712.0,0.1832907]
[1732117447060,0.3608,94719.0,94712.0,0.1832907]
[1732117447359,0.3608,94719.0,94703.0,0.2360257]
[1732117447360,0.05273,94714.0,94703.0,0.2360257]
[1732117447556,0.05273,94714.0,94704.0,0.052735]
[1732117447949,0.3608,94719.0,94703.0,0.1832907]
[1732117448153,0.3608,94719.0,94708.0,0.052732]
[1732117448462,0.0120311,94718.0,94703.0,0.22630781]
[1732117448670,0.052728,94716.0,94703.0,0.22630781]
[1732117448959,0.3608,94719.0,94708.0,0.052732]
[1732117449155,0.3608,94719.0,94712.0,0.1832907]
[1732117449557,0.3608,94719.0,94718.0,0.052727]
[1732117451462,0.04159425,94742.0,94717.0,0.3608]
[1732117451651,0.01623857,94758.0,94740.0,0.3608]
[1732117451855,0.03134938,94757.0,94748.0,0.32266254]
[1732117452049,0.04116405,94759.0,94748.0,0.32266254]
[1732117452050,0.03134938,94756.0,94751.0,0.1832907]
[1732117452261,0.03134938,94755.0,94751.0,0.1832907]
[1732117452462,0.01205745,94754.0,94753.0,0.052707]
[1732117452663,0.01205745,94754.0,94751.0,0.1832907]
[1732117452866,0.3608,94763.0,94751.0,0.1832907]
[1732117452867,0.03211132,94753.0,94751.0,0.1832907]
[1732117453059,0.03211132,94752.0,94751.0,0.1832907]
[1732117453256,0.01205745,94752.0,94751.0,0.1832907]
[1732117453659,0.01205745,94752.0,94748.0,0.36415557]
[1732117453660,0.3608,94764.0,94748.0,0.36415557]
[1732117453856,0.03315937,94752.0,94748.0,0.36415557]
[1732117454158,0.0127536,94751.0,94748.0,0.36415557]
[1732117454470,0.03315817,94750.0,94748.0,0.36415557]
[1732117454657,0.03315817,94749.0,94748.0,0.60015627]
[1732117455756,0.03315817,94749.0,94748.0,0.54744627]
[1732117456757,0.0127536,94749.0,94748.0,0.54744627]
[1732117457368,0.0345,94776.0,94765.0,0.052701]
[1732117457369,0.01623694,94773.0,94765.0,0.052701]
[1732117457569,0.03968211,94772.0,94763.0,0.5440907]
[1732117457761,0.0347,94786.0,94763.0,0.5440907]
[1732117457762,0.0162387,94788.0,94763.0,0.5440907]
[1732117457961,0.3608,94786.0,94772.0,0.3608]
[1732117458265,0.0338,94791.0,94772.0,0.3608]
[1732117458266,0.03966898,94785.0,94773.0,0.01646689]
[1732117458463,0.0338,94791.0,94772.0,0.5440907]
[1732117458464,0.03966898,94784.0,94783.0,0.052691]
[1732117458773,0.03308206,94784.0,94783.0,0.01646689]
[1732117459070,0.03308206,94784.0,94782.0,0.052691]
[1732117459259,0.03966898,94783.0,94782.0,0.052691]
[1732117459766,0.03308206,94783.0,94782.0,0.052691]
[1732117460269,0.03308206,94783.0,94782.0,0.413491]
[1732117460976,0.01624175,94801.0,94796.0,0.052683]
[1732117461159,0.04047255,94799.0,94792.0,0.1832907]
[1732117461364,0.04047255,94798.0,94797.0,0.052683]
[1732117461676,0.04047255,94798.0,94792.0,0.1832907]
[1732117461973,0.04047255,94797.0,94793.0,0.052685]
[1732117462165,0.04047255,94796.0,94793.0,0.052685]
[1732117462364,0.01624175,94799.0,94793.0,0.052685]
[1732117462365,0.04047255,94795.0,94793.0,0.052685]
[1732117462559,0.01624175,94799.0,94790.0,0.3608]
[1732117462560,0.04047255,94794.0,94790.0,0.3608]
[1732117462765,0.04047255,94793.0,94792.0,0.052686]
[1732117463367,0.04047255,94793.0,94790.0,0.40312292]
[1732117463675,0.01624175,94794.0,94790.0,0.40256292]
[1732117463676,0.04047255,94792.0,94790.0,0.40256292]
[1732117463872,0.04047255,94791.0,94790.0,0.40256292]
[1732117464064,0.04047255,94791.0,94790.0,0.45524992]